bitfinex-derivatives/quotes_BNBF0:USTF0_20250326
["timestamp","ask_amount","ask_price","bid_price","bid_amount"]
[1743031147498,1.26851353,616.82,615.81,0.26248284]
[1743031147791,0.99143263,616.82,615.81,0.26248284]
[1743031147996,0.99143263,616.82,615.83,0.32476495]
[1743031148195,0.9,616.85,615.83,0.32476495]
[1743031148196,0.99143263,616.81,615.84,0.26248284]
[1743031148391,0.99143263,616.81,615.85,0.3247544]
[1743031148599,0.99143263,616.81,615.86,0.26248284]
[1743031148800,0.99143263,616.8,615.86,0.26248284]
[1743031149503,1.26760982,616.84,615.86,0.26248284]
[1743031149504,0.99143263,616.79,615.86,0.26248284]
[1743031149703,1.87843263,616.79,615.86,0.26248284]
[1743031150009,0.99143263,616.78,615.86,0.26248284]
[1743031150203,0.99143263,616.78,615.87,0.32474385]
[1743031150401,0.99143263,616.78,615.88,0.26248284]
[1743031150705,0.887,616.79,615.89,0.32473331]
[1743031150901,0.887,616.79,615.9,0.26248284]
[1743031151104,0.887,616.79,615.91,0.32472276]
[1743031151404,0.887,616.79,615.92,0.26248284]
[1743031151605,0.887,616.79,615.93,0.32471222]
[1743031151802,0.887,616.79,615.94,0.26248284]
[1743031152102,0.887,616.79,615.95,0.32470168]
[1743031152305,0.887,616.79,615.96,0.26248284]
[1743031152509,0.887,616.79,615.97,0.32469113]
[1743031152807,0.983,616.78,615.98,0.26248284]
[1743031153202,0.983,616.78,615.99,0.32468059]
[1743031153403,0.983,616.78,616.0,0.26248284]
[1743031153707,0.983,616.78,616.01,0.32467005]
[1743031153909,0.983,616.78,616.02,0.26248284]
[1743031154103,0.983,616.78,616.02,0.58714762]
[1743031154303,0.983,616.78,616.03,0.26248284]
[1743031154708,0.983,616.78,616.02,0.32466478]
[1743031154909,0.983,616.78,616.03,0.26249644]
[1743031160414,0.84,616.77,616.03,0.26249644]
[1743031161315,0.84,616.77,616.04,0.26256087]
[1743031161515,0.84,616.77,616.03,0.26256087]
[1743031161712,0.84,616.77,616.02,0.32466478]
[1743031161713,0.84,616.77,616.04,0.26256087]
[1743031161913,0.84,616.77,616.05,0.26256087]
[1743031162117,0.84,616.77,616.06,0.26256087]
[1743031162314,0.84,616.77,616.03,0.26256087]
[1743031162517,0.84,616.77,616.04,0.26256087]
[1743031162713,0.84,616.77,616.05,0.26255404]
[1743031162912,0.84,616.77,616.03,0.26255404]
[1743031163113,0.84,616.77,616.04,0.26255404]
[1743031163314,0.84,616.77,616.03,0.26255404]
[1743031163516,0.84,616.77,616.04,0.26255404]
[1743031163719,0.84,616.77,616.05,0.26255404]
[1743031163917,0.84,616.77,616.06,0.26255404]
[1743031164121,0.84,616.77,616.03,0.26255404]
[1743031164315,0.84,616.77,616.04,0.26255404]
[1743031164520,0.84,616.77,616.05,0.26255404]
[1743031164719,0.84,616.77,616.03,0.26255404]
[1743031165023,0.84,616.77,616.04,0.26255404]
[1743031165322,0.84,616.77,616.05,0.26255404]
[1743031165519,0.84,616.77,616.06,0.26255404]
[1743031165818,0.84,616.77,616.07,0.26255404]
[1743031166020,0.84,616.77,616.08,0.26255404]
[1743031166218,0.84,616.77,616.03,0.26255404]
[1743031166419,0.84,616.77,616.04,0.26255404]
[1743031166614,0.84,616.77,616.03,0.26255404]
[1743031166822,0.84,616.77,616.04,0.26255404]
[1743031167019,0.84,616.77,616.05,0.26255404]
[1743031167220,0.84,616.77,616.03,0.26255404]
[1743031167417,0.84,616.77,616.04,0.26255404]
[1743031167617,0.84,616.77,616.05,0.26255404]
[1743031167821,0.84,616.77,616.03,0.26255404]
[1743031168117,0.84,616.77,616.04,0.26255404]
[1743031168324,0.84,616.77,616.03,0.26255404]
[1743031168622,0.84,616.77,616.04,0.26255404]
[1743031168823,0.84,616.77,616.05,0.26255404]
[1743031169023,0.84,616.77,616.02,0.32466478]
[1743031169223,0.84,616.77,616.03,0.26254957]
[1743031172322,1.075,616.76,616.04,0.26254975]
[1743031172524,1.075,616.76,616.05,0.26254975]
[1743031172724,1.075,616.76,616.03,0.26254975]
[1743031172922,1.075,616.76,616.04,0.26254975]
[1743031173124,1.075,616.76,616.05,0.26254975]
[1743031173329,1.075,616.76,616.03,0.26254975]
[1743031173521,1.075,616.76,616.04,0.26254975]
[1743031173725,1.075,616.76,616.02,0.32466478]
[1743031174028,1.075,616.76,616.03,0.26255026]
[1743031177030,1.075,616.76,616.04,0.26254966]
[1743031177226,0.661,616.75,616.05,0.26254966]
[1743031177431,0.661,616.75,616.06,0.26254966]
[1743031177631,0.661,616.75,616.03,0.26254966]
[1743031177831,0.661,616.75,616.04,0.26254966]
[1743031178036,0.661,616.75,616.05,0.26254966]
[1743031178234,0.661,616.75,616.06,0.26254966]
[1743031178436,0.661,616.75,616.03,0.26254966]
[1743031178635,0.661,616.75,616.04,0.2625549]
[1743031178934,0.661,616.75,616.05,0.2625549]
[1743031179137,0.661,616.75,616.06,0.2625549]
[1743031179331,0.661,616.75,616.03,0.2625549]
[1743031179536,0.661,616.75,616.04,0.2625549]
[1743031179736,0.661,616.75,616.03,0.2625549]
[1743031180036,0.661,616.75,616.04,0.2625549]
[1743031180237,0.661,616.75,616.05,0.26255069]
[1743031180438,0.661,616.75,616.06,0.26255069]
[1743031180737,0.661,616.75,616.07,0.26255069]
[1743031181037,0.661,616.75,616.08,0.26255069]
[1743031181238,0.661,616.75,616.09,0.26255069]
[1743031181537,0.661,616.75,616.1,0.26255069]
[1743031181740,0.661,616.75,616.03,0.26255069]
[1743031181938,0.661,616.75,616.04,0.26255069]
[1743031182138,0.661,616.75,616.03,0.26255069]
[1743031182340,0.661,616.75,616.04,0.26255069]
[1743031182639,0.661,616.75,616.05,0.26255069]
[1743031182934,0.661,616.75,616.06,0.26255069]
[1743031183138,0.661,616.75,616.07,0.26255069]
[1743031183440,0.661,616.75,616.08,0.26255069]
[1743031183634,0.661,616.75,616.03,0.26255069]
[1743031183839,0.661,616.75,616.04,0.26255069]
[1743031184134,0.661,616.75,616.05,0.26255069]
[1743031184339,0.661,616.75,616.03,0.26255069]
[1743031184535,0.661,616.75,616.04,0.26255069]
[1743031184739,0.661,616.75,616.05,0.26255069]
[1743031184936,0.661,616.75,616.06,0.26257911]
[1743031185135,0.661,616.75,616.03,0.26257911]
[1743031185442,0.661,616.75,616.04,0.26257911]
[1743031185638,0.661,616.75,616.05,0.26257911]
[1743031185838,1.65148059,616.75,616.03,0.26257911]
[1743031186036,1.65148059,616.75,616.04,0.26257911]
[1743031186239,2.91429253,616.75,616.02,0.32466478]
[1743031186437,2.25329253,616.74,616.02,0.32466478]
[1743031186643,1.26281194,616.73,616.02,0.32466478]
[1743031187046,0.99048059,616.72,616.02,0.32466478]
[1743031187242,2.25329253,616.72,616.02,0.32466478]
[1743031187444,0.99048059,616.72,616.02,0.32466478]
[1743031187645,0.99048059,616.71,616.02,0.32466478]
[1743031188344,1.26281194,616.7,615.79,1.21105924]
[1743031188646,1.26281194,616.69,615.8,0.26266445]
[1743031188841,1.26281194,616.68,615.61,0.26266445]
[1743031189047,1.26281194,616.67,615.8,0.28237127]
[1743031189247,1.26281194,616.66,615.81,0.26266445]
[1743031189548,1.26281194,616.65,615.82,0.26266445]
[1743031189848,1.26281194,616.64,615.83,0.26267847]
[1743031190146,2.25329253,616.63,615.84,0.26267847]
[1743031190342,0.99048059,616.63,615.63,0.26267847]
[1743031190540,0.99048059,616.62,615.73,0.28241825]
[1743031190745,0.99048059,616.62,615.74,0.26267847]
[1743031191046,0.99048059,616.61,615.75,0.26267847]
[1743031191248,0.99048059,616.61,615.62,0.32487573]
[1743031191446,0.99048059,616.61,615.63,0.26268044]
[1743031191642,0.99048059,616.6,615.73,0.28242168]
[1743031191846,0.99048059,616.6,615.74,0.26268044]
[1743031192041,0.99048059,616.59,615.63,0.26268044]
[1743031192248,0.99048059,616.59,615.73,0.28242283]
[1743031192547,0.99048059,616.59,615.74,0.26268044]
[1743031192747,0.99048059,616.62,615.75,0.26268044]
[1743031192949,0.99048059,616.62,615.63,0.26268044]
[1743031193248,0.99048059,616.61,615.64,0.26268044]
[1743031193547,1.27290113,616.61,615.65,0.26268044]
[1743031193741,0.99048059,616.6,615.65,0.26268044]
[1743031194146,0.99048059,616.59,615.66,0.32485462]
[1743031194347,0.99048059,616.59,615.67,0.26268044]
[1743031194543,0.99048059,616.67,615.68,0.32484407]
[1743031194744,0.99048059,616.67,615.69,0.26268044]
[1743031194946,0.99048059,616.66,615.69,0.58751923]
[1743031195147,0.99048059,616.66,615.7,0.26268044]
[1743031195746,0.99048059,616.65,615.7,0.26268044]
[1743031196049,0.99048059,616.65,615.69,0.32483879]
[1743031196350,0.99048059,616.64,615.7,0.26265254]
[1743031196745,0.28242168,616.68,615.7,0.26265254]
[1743031197351,0.99048059,616.67,615.7,0.26265254]
[1743031197755,0.99048059,616.67,615.71,0.26265375]
[1743031197953,0.99048059,616.66,615.72,0.26265375]
[1743031198253,0.99048059,616.66,615.73,0.26265375]
[1743031198450,0.99048059,616.65,615.7,0.26265375]
[1743031198647,0.99048059,616.65,615.71,0.26265375]
[1743031198851,0.99048059,616.65,615.72,0.26265375]
[1743031199051,0.99048059,616.65,615.73,0.26265375]
[1743031199351,0.99048059,616.64,615.74,0.26265375]
[1743031199546,0.99048059,616.64,615.7,0.26265375]
[1743031199745,0.28238845,616.68,615.69,0.32483879]
[1743031199746,0.99048059,616.63,615.71,0.26265375]
[1743031199950,0.99048059,616.63,615.72,0.26265375]
[1743031200153,0.99048059,616.62,615.73,0.26265375]
[1743031200348,0.99048059,616.62,615.7,0.26265375]
[1743031200547,0.99048059,616.62,615.71,0.26265375]
[1743031200751,0.99048059,616.61,615.7,0.26265375]
[1743031200952,1.89348059,616.61,615.71,0.26265375]
[1743031201147,0.99048059,616.6,615.7,0.26265375]
[1743031201353,0.99048059,616.6,615.71,0.26265375]
[1743031201551,0.99048059,616.6,615.72,0.26265375]
[1743031201748,0.99048059,616.6,615.73,0.26265375]
[1743031201951,0.99048059,616.6,615.7,0.26265375]
[1743031202355,0.99048059,616.59,615.7,0.26265375]
[1743031202655,1.26332286,616.58,615.7,0.26265375]
[1743031202849,1.26332286,616.57,615.7,0.26265375]
[1743031203056,2.25380345,616.58,615.7,0.26265375]
[1743031203250,0.28242512,616.56,615.7,0.26265375]
[1743031203455,1.54574798,616.56,615.7,0.26265375]
[1743031203657,0.28242512,616.56,615.7,0.26265375]
[1743031203859,1.54574798,616.56,615.7,0.26265375]
[1743031204162,0.99048059,616.55,615.7,0.26265375]
[1743031204664,1.26332286,616.54,615.69,0.60726391]
[1743031204859,2.25380345,616.53,615.69,0.60726391]
[1743031205061,0.99048059,616.53,615.69,0.60726391]
[1743031205461,0.99048059,616.52,615.69,0.60726391]
[1743031206068,1.87948059,616.51,615.7,0.26267642]
[1743031206659,0.889,616.51,615.69,0.60726391]
[1743031206862,0.889,616.51,615.7,0.26267047]
[1743031207758,0.736,616.5,615.7,0.26267047]
[1743031209967,0.736,616.5,615.71,0.26267081]
[1743031210168,0.736,616.5,615.7,0.26267081]
[1743031210365,0.736,616.5,615.71,0.26267081]
[1743031210566,0.736,616.5,615.7,0.26267081]
[1743031210766,0.736,616.5,615.71,0.26267081]
[1743031210962,0.736,616.5,615.72,0.26267081]
[1743031211164,0.736,616.5,615.69,0.60726391]
[1743031211165,0.736,616.5,615.7,0.26267081]
[1743031211367,0.736,616.5,615.7,0.28240564]
[1743031211567,0.736,616.5,615.71,0.26266774]
[1743031214367,0.736,616.5,615.72,0.26266774]
[1743031214569,0.736,616.5,615.7,0.28240564]
[1743031214769,0.736,616.5,615.71,0.26266946]
[1743031216967,0.697,616.49,615.71,0.26266946]
[1743031217367,0.697,616.49,615.7,0.26266946]
[1743031217571,0.697,616.49,615.71,0.26266946]
[1743031217768,0.697,616.49,615.7,0.26266946]
[1743031218069,0.697,616.49,615.71,0.26266946]
[1743031218269,0.697,616.49,615.7,0.26266946]
[1743031218472,0.697,616.49,615.71,0.26266946]
[1743031220374,0.697,616.49,615.72,0.26266946]
[1743031220674,0.697,616.49,615.73,0.26266946]
[1743031220975,0.697,616.49,615.74,0.26266675]
[1743031221177,0.697,616.49,615.75,0.26266675]
[1743031221376,0.697,616.49,615.71,0.28240679]
[1743031221573,0.697,616.49,615.72,0.26266675]
[1743031222576,0.697,616.49,615.73,0.26266681]
[1743031222771,0.697,616.49,615.72,0.26266681]
[1743031222969,0.697,616.49,615.73,0.26266681]
[1743031223271,0.697,616.49,615.71,0.28240679]
[1743031223577,0.99048059,616.48,615.71,0.28240679]
[1743031224277,0.99048059,616.47,615.71,0.28240679]
[1743031224873,0.697,616.49,615.71,0.28240679]
[1743031224874,0.99048059,616.46,615.71,0.28240679]
[1743031225580,0.99048059,616.45,615.71,0.28240679]
[1743031225773,0.99048059,616.44,615.71,0.28240679]
[1743031226176,0.99048059,616.43,615.69,0.32483879]
[1743031226879,0.99048059,616.42,615.69,0.32483879]
[1743031227480,0.99048059,616.48,615.7,0.28254207]
[1743031228177,0.99048059,616.47,615.7,0.28254207]
[1743031228779,0.99048059,616.46,615.7,0.28254207]
[1743031229281,0.99048059,616.48,615.69,0.32483879]
[1743031230079,0.99048059,616.47,615.69,0.32483879]
[1743031230582,0.99048059,616.47,615.7,0.28249505]
[1743031230887,0.99048059,616.46,615.7,0.28249505]
[1743031231281,0.99048059,616.45,615.7,0.28249505]
[1743031231980,0.99048059,616.44,615.7,0.28249505]
[1743031232282,0.99048059,616.48,615.69,0.32483879]
[1743031232683,0.99048059,616.47,615.69,0.32483879]
[1743031232885,0.99048059,616.47,615.7,0.26266361]
[1743031233283,0.697,616.49,615.7,0.54515063]
[1743031233284,0.99048059,616.46,615.7,0.54515063]
[1743031233484,0.99048059,616.46,615.71,0.26266361]
[1743031233782,0.99048059,616.46,615.72,0.26266224]
[1743031233988,0.99048059,616.48,615.73,0.26266224]
[1743031234187,0.99048059,616.48,615.71,0.26266224]
[1743031234382,0.99048059,616.48,615.72,0.26266224]
[1743031234587,0.99048059,616.48,615.7,0.28248702]
[1743031234588,0.99048059,616.48,615.71,0.26266224]
[1743031234782,0.99048059,616.47,615.72,0.26266224]
[1743031234984,0.99048059,616.46,615.72,0.32482297]
[1743031235182,0.99048059,616.46,615.73,0.26266224]
[1743031235381,0.99048059,616.46,615.74,0.26263396]
[1743031235582,0.99048059,616.5,615.75,0.32480714]
[1743031235782,0.889,616.51,615.75,0.32480714]
[1743031235783,0.889,616.51,615.76,0.26263396]
[1743031236582,0.801,616.5,615.76,0.26263396]
[1743031237685,0.99012033,616.49,615.76,0.26263396]
[1743031238088,0.801,616.5,615.76,0.26263396]
[1743031238385,0.816,616.48,615.75,0.32480714]
[1743031238589,1.26636593,616.47,615.75,0.32480714]
[1743031238889,1.26636593,616.46,615.75,0.32480714]
[1743031239085,1.26636593,616.45,615.75,0.32480714]
[1743031239283,1.26636593,616.44,615.75,0.32480714]
[1743031239484,1.26636593,616.43,615.75,0.32480714]
[1743031239687,1.26636593,616.42,615.75,0.32480714]
[1743031239883,1.26600954,616.41,615.75,0.32480714]
[1743031240184,1.26600954,616.4,615.75,0.32480714]
[1743031240389,1.26600954,616.39,615.75,0.32480714]
[1743031240689,2.25584349,616.38,615.75,0.32480714]
[1743031240890,1.26600954,616.37,615.75,0.32480714]
[1743031241090,1.26600954,616.36,615.75,0.32480714]
[1743031241286,1.26600954,616.35,615.75,0.32480714]
[1743031241491,1.26600954,616.34,615.75,0.32480714]
[1743031241790,1.26600954,616.33,615.75,0.32480714]
[1743031241990,1.26600954,616.32,615.75,0.32480714]
[1743031242185,1.26600954,616.31,615.75,0.32480714]
[1743031242384,1.26600954,616.3,615.75,0.32480714]
[1743031242585,2.25584349,616.29,615.75,0.32480714]
[1743031242890,0.98983395,616.29,615.75,0.32480714]
[1743031243291,2.25714694,616.28,615.75,0.32480714]
[1743031243591,0.98983395,616.27,615.75,0.32480714]
[1743031244391,0.98983395,616.26,615.75,0.32480714]
[1743031244990,0.98983395,616.25,615.75,0.32480714]
[1743031245688,0.98983395,616.24,615.75,0.32480714]
[1743031246390,1.26782753,616.35,615.75,0.32480714]
[1743031246589,1.26782753,616.34,615.75,0.32480714]
[1743031246792,0.816,616.48,615.75,0.32480714]
[1743031246793,1.26782753,616.33,615.75,0.32480714]
[1743031246987,2.2594774,616.32,615.75,0.32480714]
[1743031247188,1.26782753,616.31,615.75,0.32480714]
[1743031247390,1.26782753,616.3,615.75,0.32480714]
[1743031247590,0.99164987,616.3,615.75,0.32480714]
[1743031248190,0.99164987,616.29,615.75,0.32480714]
[1743031248592,0.99164987,616.28,615.75,0.32480714]
[1743031249194,0.816,616.48,615.75,0.32480714]
[1743031249496,1.26808405,616.47,615.75,0.32480714]
[1743031249795,1.26808405,616.46,615.75,0.32480714]
[1743031249995,1.26808405,616.45,615.75,0.32480714]
[1743031250197,2.25965624,616.44,615.75,0.32480714]
[1743031250393,1.26808405,616.43,615.75,0.32480714]
[1743031250597,1.26808405,616.42,615.75,0.32480714]
[1743031250792,1.26808405,616.41,615.75,0.32480714]
[1743031250997,1.26808405,616.4,615.75,0.32480714]
[1743031251193,1.26808405,616.39,615.75,0.32480714]
[1743031251391,2.25960945,616.38,615.75,0.32480714]
[1743031251595,1.26803726,616.37,615.75,0.32480714]
[1743031251797,1.26803726,616.36,615.75,0.32480714]
[1743031251992,1.26803726,616.35,615.75,0.32480714]
[1743031252193,1.26803726,616.34,615.75,0.32480714]
[1743031252497,1.26803726,616.33,615.75,0.32480714]
[1743031252698,1.26803726,616.32,615.75,0.32480714]
[1743031252899,1.26803726,616.31,615.75,0.32480714]
[1743031253099,0.99157219,616.33,615.75,0.32480714]
[1743031253300,0.99157219,616.3,615.75,0.32480714]
[1743031253500,0.99157219,616.3,615.76,0.26271781]
[1743031254204,0.99157219,616.29,615.76,0.26271781]
[1743031254396,0.99157219,616.28,615.76,0.26271781]
[1743031254803,0.99157219,616.28,615.75,0.32480714]
[1743031255000,1.26789637,616.42,615.75,0.32480714]
[1743031255204,1.26800851,616.41,615.75,0.32480714]
[1743031255405,1.26800851,616.4,615.75,0.32480714]
[1743031255605,2.2594825,616.39,615.75,0.32480714]
[1743031255905,1.26800851,616.38,615.75,0.32480714]
[1743031256099,2.2594825,616.37,615.75,0.32480714]
[1743031256299,1.26800851,616.36,615.75,0.32480714]
[1743031256505,2.2594825,616.35,615.75,0.32480714]
[1743031256700,1.26800851,616.34,615.75,0.32480714]
[1743031256907,2.2594825,616.33,615.75,0.32480714]
[1743031257209,1.26800851,616.32,615.75,0.32480714]
[1743031257406,1.26800851,616.31,615.75,0.32480714]
[1743031257706,0.99147399,616.31,615.75,0.32480714]
[1743031258206,0.99147399,616.3,615.75,0.32480714]
[1743031258606,2.25913085,616.29,615.27,1.21105924]
[1743031258906,1.26765686,616.28,615.23,1.21105924]
[1743031259102,1.26765686,616.27,615.23,1.21105924]
[1743031259303,1.26765686,616.26,615.24,0.26287174]
[1743031259507,2.25913085,616.25,615.24,0.28259599]
[1743031259809,1.26765686,616.24,615.25,0.2628886]
[1743031260005,1.26765686,616.23,615.25,0.2628886]
[1743031260204,1.26765686,616.22,615.25,0.2628886]
[1743031260401,1.26765686,616.21,615.25,0.2628886]
[1743031260606,1.26765686,616.2,615.25,0.2628886]
[1743031260806,2.25913085,616.19,615.25,0.2628886]
[1743031261007,1.26765686,616.18,615.24,0.28259599]
[1743031261207,1.26765686,616.17,615.24,0.28259599]
[1743031261407,1.26765686,616.16,615.24,0.28259599]
[1743031261608,1.26765686,616.15,615.24,0.28259599]
[1743031261805,1.26765686,616.14,615.24,0.28259599]
[1743031262011,1.26765686,616.13,615.24,0.28259599]
[1743031262310,1.26765686,616.12,615.24,0.28259599]
[1743031262511,1.26765686,616.11,615.24,0.28259599]
[1743031262706,2.25913085,616.1,615.24,0.28259599]
[1743031262911,1.26765686,616.09,615.24,0.28259599]
[1743031263107,1.26765686,616.08,615.24,0.28259599]
[1743031263313,0.99147399,616.08,615.24,0.28259599]
[1743031263812,0.99147399,616.07,615.24,0.28259599]
[1743031264510,0.99147399,616.06,615.24,0.28259599]
[1743031264910,0.99147399,616.05,615.24,0.28259599]
[1743031265112,0.99147399,616.06,614.49,1.21105924]
[1743031265310,1.65547399,616.07,614.51,0.32546256]
[1743031265511,1.65547399,616.07,615.24,0.28271422]
[1743031265710,1.65547399,616.07,614.51,0.32546256]
[1743031265912,1.65547399,616.07,614.52,0.26290003]
[1743031266108,1.65547399,616.07,614.54,0.32544667]
[1743031266312,1.65547399,616.07,614.55,0.26290003]
[1743031266513,0.664,616.07,614.57,0.32543078]
[1743031266814,0.664,616.07,614.58,0.26290003]
[1743031267209,0.664,616.07,614.6,0.3254149]
[1743031267414,0.664,616.07,614.61,0.26290003]
[1743031267610,0.664,616.07,614.63,0.32539902]
[1743031267811,0.664,616.07,614.64,0.26290003]
[1743031268015,0.664,616.07,614.66,0.32538313]
[1743031268215,0.664,616.07,614.67,0.26290003]
[1743031268416,0.664,616.07,614.69,0.32536725]
[1743031268715,0.664,616.07,614.7,0.26290287]
[1743031268916,0.664,616.07,614.72,0.32535137]
[1743031269116,0.664,616.07,614.73,0.26290287]
[1743031269319,0.664,616.07,614.75,0.3253355]
[1743031269518,0.664,616.07,614.76,0.26290287]
[1743031269720,0.664,616.07,614.78,0.32531962]
[1743031269921,0.664,616.07,614.79,0.26290303]
[1743031270117,0.664,616.07,614.81,0.32530375]
[1743031270324,1.622,616.07,614.82,0.26290303]
[1743031270523,1.622,616.07,614.84,0.32528787]
[1743031270818,1.622,616.07,614.85,0.26290303]
[1743031271024,1.622,616.07,614.87,0.325272]
[1743031271222,1.622,616.07,614.88,0.26290303]
[1743031271619,2.61347399,616.07,614.88,0.26290303]
[1743031271819,3.87633925,616.07,614.88,0.26290303]
[1743031272023,3.87633925,616.07,614.9,0.32525613]
[1743031272326,3.87633925,616.07,614.91,0.26290303]
[1743031272627,3.87633925,616.07,614.93,0.32524027]
[1743031272818,2.61347399,616.07,614.94,0.26290303]
[1743031273017,1.622,616.07,614.96,0.3252244]
[1743031273224,1.622,616.07,614.97,0.26290303]
[1743031273725,1.622,616.07,614.99,0.32520853]
[1743031273926,1.622,616.07,615.0,0.26290303]
[1743031274326,1.622,616.07,615.02,0.32519267]
[1743031274523,1.622,616.07,615.03,0.26290303]
[1743031274728,1.622,616.07,615.04,0.3251821]
[1743031274921,1.622,616.07,615.05,0.26290303]
[1743031275728,1.622,616.07,615.06,0.32517152]
[1743031275925,1.622,616.07,615.07,0.26290303]
[1743031276128,1.622,616.07,615.08,0.32516095]
[1743031276325,2.88038151,616.07,615.09,0.26290303]
[1743031276523,3.8718555,616.07,615.1,0.32515038]
[1743031276728,3.8718555,616.07,615.11,0.26290303]
[1743031276929,3.8718555,616.07,615.12,0.32513981]
[1743031277224,3.8718555,616.07,615.13,0.26290303]
[1743031277423,3.8718555,616.07,615.14,0.32512923]
[1743031277626,3.8718555,616.07,615.15,0.26290303]
[1743031277830,2.61347399,616.07,615.16,0.32511866]
[1743031278030,1.622,616.07,615.17,0.26290303]
[1743031278231,1.622,616.07,615.18,0.32510809]
[1743031278425,1.622,616.07,615.19,0.26290303]
[1743031278625,1.622,616.07,615.2,0.32509752]
[1743031278829,1.622,616.07,615.21,0.26290303]
[1743031279026,1.622,616.07,615.21,0.58799527]
[1743031279227,1.622,616.07,615.22,0.26290303]
[1743031280930,1.622,616.07,615.23,0.26290622]
[1743031281135,1.622,616.07,615.22,0.26290622]
[1743031281936,1.622,616.07,615.22,0.58799318]
[1743031282132,1.622,616.07,615.23,0.26290622]
[1743031284034,1.622,616.07,615.24,0.26290994]
[1743031284237,1.622,616.07,615.25,0.26290994]
[1743031284439,1.622,616.07,615.26,0.26290994]
[1743031284734,1.622,616.07,615.23,0.26290994]
[1743031284939,1.622,616.07,615.24,0.26290994]
[1743031285139,1.622,616.07,615.25,0.26290994]
[1743031285335,1.622,616.07,615.23,0.26290994]
[1743031285536,2.284,616.07,615.22,0.32508696]
[1743031285740,2.284,616.07,615.23,0.2629089]
[1743031287241,2.284,616.07,615.24,0.26291807]
[1743031287442,2.284,616.07,615.23,0.26291807]
[1743031287642,2.284,616.07,615.24,0.26291807]
[1743031287841,2.284,616.07,615.25,0.26291807]
[1743031288045,2.284,616.07,615.23,0.26291807]
[1743031288242,2.284,616.07,615.24,0.26291807]
[1743031288437,2.284,616.07,615.25,0.26291807]
[1743031288640,2.284,616.07,615.26,0.26291807]
[1743031288839,2.284,616.07,615.23,0.26291807]
[1743031289144,2.284,616.07,615.24,0.26291807]
[1743031289344,2.284,616.07,615.25,0.26291807]
[1743031289547,2.284,616.07,615.23,0.26291807]
[1743031289745,2.284,616.07,615.24,0.26291807]
[1743031290045,3.27547399,616.07,615.25,0.26291807]
[1743031290242,1.25765552,616.06,615.26,0.26291807]
[1743031290646,1.25765552,616.06,615.27,0.26291807]
[1743031290843,1.62,616.07,615.28,0.26291807]
[1743031291044,1.62,616.07,615.23,0.26291807]
[1743031291246,1.62,616.07,615.24,0.26291807]
[1743031291441,1.62,616.07,615.23,0.26291807]
[1743031291645,1.62,616.07,615.22,0.32508696]
[1743031291646,1.62,616.07,615.24,0.26291807]
[1743031291843,1.62,616.07,615.22,0.32508696]
[1743031292149,1.62,616.07,615.23,0.26291593]
[1743031293448,2.248,616.07,615.23,0.26291593]
[1743031295047,2.248,616.07,615.24,0.26290816]
[1743031295249,2.248,616.07,615.25,0.26290816]
[1743031295542,2.248,616.07,615.26,0.26290816]
[1743031295746,2.248,616.07,615.23,0.26290816]
[1743031295946,2.248,616.07,615.24,0.26290816]
[1743031296147,2.248,616.07,615.25,0.26290816]
[1743031296342,2.248,616.07,615.26,0.26290816]
[1743031296848,2.248,616.07,615.27,0.26290816]
[1743031297148,3.50617328,616.07,615.28,0.26290816]
[1743031297342,4.49764727,616.07,615.29,0.26290816]
[1743031297545,4.49764727,616.07,615.22,0.6077059]
[1743031297546,2.25051931,616.06,615.3,0.26290816]
[1743031297743,0.99147399,616.06,615.31,0.26290816]
[1743031297948,0.99147399,616.06,615.32,0.26290816]
[1743031298149,2.248,616.07,615.33,0.26290816]
[1743031298350,2.248,616.07,615.23,0.26290816]
[1743031298649,2.248,616.07,615.24,0.26290816]
[1743031298949,2.248,616.07,615.25,0.26290816]
[1743031299146,2.248,616.07,615.23,0.26290816]
[1743031299343,2.248,616.07,615.24,0.26290816]
[1743031301144,2.248,616.07,615.22,0.32508696]
[1743031301448,2.248,616.07,615.23,0.26290987]
[1743031301850,3.23306004,616.07,615.23,0.26290987]
[1743031302053,1.25997795,616.06,615.23,0.26290987]
[1743031302351,1.25997795,616.06,615.23,0.5455334]
[1743031302552,0.98506004,616.06,615.24,0.26290987]
[1743031302751,0.98506004,616.06,615.25,0.2629138]
[1743031303053,0.98506004,616.05,615.26,0.2629138]
[1743031303253,1.29,616.07,615.23,0.28262353]